Cogmind - Beta 16.1 --- EXPLORER MODE // 2026.03.01 @ 23:22:33 Player: DemonChuckle Result: Destroyed by D-53 Grenadier with Mini Grenade Launcher Performance ------------- Evolutions (0) 0 Regions Visited (2) 400 Robots Destroyed (3) 15 Value Destroyed (36) 36 Prototype IDs (2) 40 Alien Tech Used (0) 0 Bonus (0) 0 TOTAL SCORE: 491 Bonus ------- None Cogmind --------- Core Integrity 0/250 Matter 300/300 Energy 99/100 System Corruption 0% Temperature Cool (0) Movement Core (200) Ox3 Location -10/Mines Parts ------- > --- POWER (2) -------- (None) > --- PROPULSION (2) --- (None) > --- UTILITY (2) ------ Medium Storage Unit Signal Interpreter > --- WEAPON (2) ------- Medium Laser > --- INVENTORY (10) --- Medium Matter Pod (40) Medium Matter Pod (0) Medium Matter Pod (0) Peak State ------------ > --- POWER ------------ Ion Engine Light Ion Engine > --- PROPULSION ------- Aluminum Leg Aluminum Leg > --- UTILITY ---------- Medium Storage Unit Signal Interpreter > --- WEAPON ----------- Medium Laser Assault Rifle > --- INVENTORY -------- Light Treads Light Treads Core Shielding Medium Laser [Rating: 8] Favorites ----------- Power Light Ion Engine Engine Light Ion Engine Propulsion Aluminum Leg Leg Aluminum Leg Utility Signal Interpreter Storage Medium Storage Unit Processor Signal Interpreter Protection Weapon Shielding Weapon Medium Laser Energy Gun Medium Laser Ballistic Gun Assault Rifle Build | -11 -10 -10 ------- Run | Yrd Mat Min Slots Evolved 1 | . 1 . Power 1 | . 1 . Propulsion . | . . . Utility . | . . . Weapon . | . . . Parts Attached 10 | 8 1 1 Power 2 | 1 1 . Engine 2 | 1 1 . Core . | . . . Reactor . | . . . Propulsion 2 | 2 . . Treads . | . . . Leg 2 | 2 . . Wheel . | . . . Hover . | . . . Flight . | . . . Utility 3 | 3 . . Device . | . . . Storage 1 | 1 . . Processor 1 | 1 . . Hackware . | . . . Protection 1 | 1 . . Artifact . | . . . Weapon 3 | 2 . 1 Energy Gun 2 | 1 . 1 Energy Cannon . | . . . Ballistic Gun 1 | 1 . . Ballistic Cannon . | . . . Launcher . | . . . Special Weapon . | . . . Impact Weapon . | . . . Slashing Weapon . | . . . Piercing Weapon . | . . . Special Melee Weapon . | . . . Unidentified Prototypes . | . . . Parts Lost 6 | . . 6 Power 2 | . . 2 Propulsion 2 | . . 2 Utility . | . . . Weapon 2 | . . 2 Highest Loss Streak 6 | . . 6 To Critical Strikes . | . . . Average Backups 3 | 2 4 3 Power . | . . . Propulsion . | . 1 . Utility 2 | . 1 3 Weapon . | . 1 . Tool/Special . | . . . Unused Backups 6 | . 3 3 Power . | . . . Propulsion 2 | . 2 . Utility 4 | . 1 3 Weapon . | . . . Tool/Special . | . . . Average Slot Usage (%) 97 | . 97 97 Engine 23 | . 22 24 Leg 24 | . 25 24 Storage 12 | . 12 12 Processor 12 | . 12 12 Energy Gun 12 | . 12 12 Ballistic Gun 11 | . 12 11 Peak Build Rating 8 | 7 8 8 Average Rating 7 | 5 7 7 On Entrance 5 | . 7 8 Avg Prop Armor Cover (%) . | . . . Naked Turns . | . . . Heaviest Build 22 | 17 22 22 Greatest Support 20 | 20 20 20 Greatest Overweight (x) 4 | . 1 4 Average Overweight (x) . | . . 1 Largest Inventory Capacity 10 | 10 10 10 Average Capacity 9 | 8 10 10 Most Carried 5 | 5 5 4 Average Carried 3 | 2 3 3 Final Capacity 10 | 10 10 10 Final Carried 5 | 5 4 3 Class Distribution -------------------- 100% | Hacker-Mutant Dominant Class ---------------- Hacker-Mutant | -10/Materials Hacker-Mutant | -10/Mines Resources | -11 -10 -10 ----------- Run | Yrd Mat Min Matter Collected 337 | 246 34 57 Remotely . | . . . Salvage Created 47 | . 20 27 Parts 6 | . 3 3 Haulers Intercepted . | . . . Recyclers Shooed . | . . . Parts Field Recycled . | . . . Retrieved Matter . | . . . Parts Self-Destructed . | . . . Prevented . | . . . Parts Restored . | . . . Kills | -11 -10 -10 ------- Run | Yrd Mat Min Combat Hostiles Destroyed 2 | . . 2 Guns 2 | . . 2 Classes Destroyed 2 | . 1 1 Watcher 1 | . 1 . Swarmer 2 | . . 2 Best Kill Streak 2 | . 1 2 Combat Bots Only 2 | . . 2 Max Kills in Single Turn 1 | . 1 1 Gunslinging . | . . . Exploded . | . . . Melee . | . . . Uniques/NPCs Destroyed . | . . . Combat | -11 -10 -10 -------- Run | Yrd Mat Min Hostile Shots Fired 53 | . . 53 Missed 13 | . . 13 Hits 40 | . . 40 Melee 2 | . . 2 Projectile 38 | . . 38 AOE 30 | . . 30 Critical Strikes 1 | . . 1 Damage Taken 867 | . . 867 Core 268 | . . 268 Absorbed by Shields . | . . . Ignored by Resistances 508 | . . 508 Core Remaining (%) 100 | 100 . . Volleys Fired 9 | . 1 8 Largest 2 | . 2 2 Hottest 70 | . 70 70 Shots Fired 18 | . 2 16 Gun 18 | . 2 16 Cannon . | . . . Launcher . | . . . Special . | . . . Kinetic 9 | . 1 8 Thermal 9 | . 1 8 Explosive . | . . . Electromagnetic . | . . . Robot Hit Streak 10 | . 1 10 Robot Miss Streak 1 | . . 1 Penetration Max . | . . . Secondary Targets . | . . . Shots Hit Robots 13 | . 1 12 Core Hits 3 | . 1 2 Critical Kills . | . . . Critical Parts Destroyed . | . . . Critical Strikes . | . . . Melee Attacks . | . . . Impact . | . . . Slashing . | . . . Piercing . | . . . Sneak Attacks . | . . . Combat Hostiles . | . . . Follow-up Attacks . | . . . Damage Inflicted 157 | . 12 145 Guns 157 | . 12 145 Cannons . | . . . Explosions . | . . . Melee . | . . . Ramming . | . . . Kinetic 82 | . . 82 Thermal 75 | . 12 63 Explosive . | . . . Electromagnetic . | . . . Impact . | . . . Slashing . | . . . Piercing . | . . . Highest Corruption . | . . . Average Corruption . | . . . Corruption Purged . | . . . Corruption Blocked . | . . . Overload Shots . | . . . Overflow Damage . | . . . Projectiles . | . . . Explosions . | . . . Melee . | . . . Knockbacks . | . . . Impact . | . . . Kinetic . | . . . Secondary . | . . . Self-Inflicted Damage . | . . . Shots . | . . . Rammed . | . . . Targets Rammed . | . . . Kicked . | . . . Crushed . | . . . Highest Temperature 144 | . 24 144 Average Temperature 57 | . 14 61 Received Heat Transfer 40 | . . 40 Siege Activations . | . . . Martial Activations . | . . . Shielding Activations . | . . . Robots Disrupted . | . . . Combat Hostiles . | . . . Robots Corrupted . | . . . Combat Hostiles . | . . . Parts Fried . | . . . Impact Corruptions . | . . . Robots Melted . | . . . Combat Hostiles . | . . . Parts Melted . | . . . Heat Transferred 222 | . 37 185 Parts Sabotaged . | . . . Parts Stolen . | . . . Parts Stripped . | . . . Power Chain Reactions . | . . . Alert | -11 -10 -10 ------- Run | Yrd Mat Min Maximum Alert Level . | . . . Low Security (%) 100 | 100 100 100 Level 1 . | . . . Level 2 . | . . . Level 3 . | . . . Level 4 . | . . . Level 5 . | . . . High Security . | . . . Max Security . | . . . Peak Influence 35 | . 7 35 Initial . | . . . Average 2 | . . 3 Influence Increases 62 | . 12 50 Destroy 0b10 Robot/C 40 | . . 40 Destroy 0b10 Robot/NC 5 | . 5 . Destroy Leader 12 | . 2 10 Successful Hack 5 | . 5 . Influence Decreases 62 | . 12 50 Time Decay 62 | . 12 50 Squads Dispatched . | . . . Investigation . | . . . Extermination . | . . . Reinforcement . | . . . Assault . | . . . Garrison . | . . . Intercept . | . . . Searches Triggered . | . . . Construction Impeded . | . . . Haulers Reinforced . | . . . Active Scanning Responses . | . . . Cargo Convoy Interrupts . | . . . Stealth | -11 -10 -10 --------- Run | Yrd Mat Min Distress Signals . | . . . Communications Jammed . | . . . Distress Signals . | . . . Times Spotted 15 | . 1 14 Peak Tracking Total 10 | . 1 10 Tactical Retreats . | . . . Traps | -11 -10 -10 ------- Run | Yrd Mat Min Traps Triggered . | . . . Indirectly . | . . . Trap Hack Attempts . | . . . Triggered . | . . . Disarmed . | . . . Reprogrammed . | . . . Reused . | . . . Traps Extracted . | . . . Installed . | . . . Triggered . | . . . Machines | -11 -10 -10 ---------- Run | Yrd Mat Min Machines Disabled . | . . . Max in Single Turn . | . . . Machines Repaired . | . . . Machines Dismantled . | . . . Machines Sabotaged . | . . . Overloaded Fab Kills . | . . . Hacking | -11 -10 -10 --------- Run | Yrd Mat Min Machines Accessed 1 | . 1 . Terminals 1 | . 1 . Fabricators . | . . . Repair Stations . | . . . Recycling Units . | . . . Scanalyzers . | . . . Garrison Access . | . . . Total Hacks 5 | . 5 . Successful 5 | . 5 . Failed . | . . . Catastrophic . | . . . Database Lockouts . | . . . Manual . | . . . Terminals 5 | . 5 . Fabricators . | . . . Repair Stations . | . . . Recycling Units . | . . . Scanalyzers . | . . . Garrison Access . | . . . Terminal Hacks 5 | . 5 . Record 3 | . 3 . Prototype ID Bank 1 | . 1 . Branch Access Points 1 | . 1 . Fabricator Hacks . | . . . Repair Station Hacks . | . . . Recycling Unit Hacks . | . . . Scanalyzer . | . . . Garrison Access Hacks . | . . . Unauthorized Hacks . | . . . Terminals . | . . . Fabricators . | . . . Repair Stations . | . . . Recycling Units . | . . . Scanalyzers . | . . . Garrison Access . | . . . Data Cores Recovered . | . . . Used . | . . . Hacking Detections 1 | . 1 . Full Trace Events 1 | . 1 . Feedback Events . | . . . Feedback Blocked . | . . . Robot Schematics Acquired . | . . . Robots Built . | . . . Authchips . | . . . Time . | . . . Total Robot Build Rating . | . . . Part Schematics Acquired . | . . . Parts Built . | . . . Authchips . | . . . Time . | . . . Total Part Build Rating . | . . . Part Studies Acquired . | . . . Parts Repaired . | . . . Time . | . . . Parts Recycled . | . . . Recycled Matter . | . . . Retrieved Matter . | . . . Retrieved Components . | . . . Parts Scanalyzed . | . . . Part Schematics Acquired . | . . . Parts Damaged . | . . . Bothacking | -11 -10 -10 ------------ Run | Yrd Mat Min Used RIF Installer . | . . . Robots Hacked . | . . . Non-combat . | . . . Combat . | . . . Robot Hacks Applied . | . . . Relay Couplers Released . | . . . Fabnet Peak Effective % . | . . . Robots Rewired . | . . . Allies Hacked . | . . . Hacks Repelled . | . . . Allies | -11 -10 -10 -------- Run | Yrd Mat Min Total Allies . | . . . Largest Group . | . . . Highest-Rated Group . | . . . Highest-Rated Ally . | . . . Total Orders . | . . . Ally Attacks . | . . . Total Damage . | . . . Kills . | . . . Allies Corrupted . | . . . Allies Melted . | . . . Intel | -11 -10 -10 ------- Run | Yrd Mat Min Active Infowar (turns) . | . . . Robot Analysis Total . | . . . Derelict Logs Recovered . | . . . Drone Launches . | . . . Drone Recoveries . | . . . Exploration | -11 -10 -10 ------------- Run | Yrd Mat Min Turns Passed 747 | 121 213 413 Spaces Moved 415 | 90 118 207 Core 17 | 11 . 6 Treads . | . . . Legs 398 | 79 118 201 Wheels . | . . . Hover . | . . . Flight . | . . . Fastest Speed 50 | 50 120 120 Average Speed 167 | 111 174 188 Slowest Speed 250 | 120 190 250 Overloaded Moves . | . . . Propulsion Burnouts . | . . . Robots Hopped . | . . . Potential Cave-ins 2 | . . 2 Cave-ins Triggered . | . . . Exploration Rate (%) 26 | 3 25 51 Regions Visited 2 Branch Regions 1 Pre-discovered Areas . | . . . Known Exits Taken 2 | 1 1 . Unknown Exits Taken . | . . . Scrap Searched . | . . . Spaces Dug . | . . . Terrain Destroyed . | . . . Melee . | . . . Projectile . | . . . AOE . | . . . Terrain Rammed . | . . . Walls Destroyed . | . . . Machines Disabled . | . . . Actions | -11 -10 -10 --------- Run | Yrd Mat Min Total 452 | 111 125 216 Wait . | . . . Move 413 | 89 117 207 Hop . | . . . Pick Up 16 | 13 3 . Fast Attach . | . . . Attach 10 | 8 1 1 Detach . | . . . Swap . | . . . Drop 4 | 1 3 . Fire 9 | . 1 8 Melee . | . . . Ram . | . . . Kick . | . . . Crush . | . . . Escape Stasis . | . . . Rewire . | . . . Trap . | . . . Miscellaneous . | . . . Route ------- -11/Scrapyard -10/Materials (discovered 2 exits: *Min x2) -10/Mines (discovered 2 exits: *Mat x2) History --------- Turn | Location | Event 31 | -11/Scrapyard | Identified exit to Materials 31 | -11/Scrapyard | Discovered exit to Materials (range 16) 122 | -11/Scrapyard | Entered Materials 122 | -10/Materials | Evolved 1 slot: Power x1 255 | -10/Materials | Identified exit to Mines 308 | -10/Materials | Build established: Hacker-Mutant 335 | -10/Materials | Entered Mines 338 | -10/Mines | Met a Derelict bent on vengeance 448 | -10/Mines | Identified exit to Materials 448 | -10/Mines | Discovered exit to Materials (range 7) 499 | -10/Mines | Discovered exit to Materials (range 6) 674 | -10/Mines | Assembled infested the area 725 | -10/Mines | Core integrity fell below 50% 746 | -10/Mines | Core integrity fell below 20% 748 | -10/Mines | Destroyed by D-53 Grenadier with Mini Grenade Launcher Last Messages --------------- 00723_ U-05 Engineer builds a Wall. 00724_ Assault Rifle destroyed. 00724_ as-70083 destroyed. 00726_ Aluminum Leg destroyed. 00728_ The unstable cave ceiling collapses. 00730_ Med. Laser destroyed. 00730_ as-47439 destroyed. 00730_ as-49078 destroyed. 00731_ as-24223 destroyed. 00731_ as-73854 destroyed. 00731_ as-07335 destroyed. 00732_ as-98153 destroyed. 00734_ Aluminum Leg destroyed. 00735_ The unstable cave ceiling collapses. 00739_ as-34803 destroyed. 00741_ The unstable cave ceiling collapses. 00743_ K-01 Serf destroyed. 00746_ The unstable cave ceiling collapses. 00747_ Lgt. Ion Engine destroyed. 00748_ The unstable cave ceiling collapses. Map ----- +----------------------------------------------------+ | | | | | | | | | ?????????????????????????????????????????????????? | | ?????????????????????????????????????????????????? | | ?????????????????????????????????????????????????? | | ?????????????????????????????????????????????????? | | ?????????????????????????????????????????????????? | | ?????????????????????????????????????????????????? | | ?????????????????????????????????????????????????? | | ?????????????????????????????????????????????????? | | ?????????????????????????????????????????????????? | | ?????????????????????????????????????????????????? | | ?????????????????????????????????????????????????? | | ?????????????????????????????????????????????????? | | ?????????????????????????????????????????????????? | | ?????????????????????????????????????????????????? | | #????????#???????????????????????????????????????? | | ##???????# ??????????????????????????????????????? | | ##????### ####??????#######?????????????????????? | | #???? ####### ##????????????????????? | | #??????# # #????????????????????? | | #?????????# a[ #????????????????????? | | #?????????##% # #????????????????????? | | #???#####??# @ #????????????????????? | | ##### # #### = ?????????????? | | # # # ###### #?????????? | | # # #????????????????????? | | # # dd # ##????????????????????? | | # ###### #?????????????????????? | | # #???# #?????????????????????? | | # # #???# #?????????????????????? | | # ##???# #?????????????????????? | | # # #????? ?????????????????????? | | # # #?????? ?????????????????????? | | #### ####??????? ????????????????????? | | #### #####?????????? ????????????????????? | | [ ### #?????????????? #???????????????????? | | ![ ## #?????????????? #????????????????????? | | ]## ###????????????###?????????????????????? | | #????????????????????????????????????? | | #????## ???????????????????????????? | | % ## #???? #??????????????????????????? | | ### ### #???? ##?????????????????????????? | | #?#####?# #???? #?????????????????????????? | | #???????# ???? ??????????????????????????? | | ##??????# ??? ????????????????#####?????? | | ###????######?? #??????########### ##????? | | ##???????????# ##?# ### #????? | +----------------------------------------------------+ Best States ------------- Heat Dissipation 25 Energy Generation 15 Energy Capacity 275 Matter Stores 300 Matter Capacity 300 Sight Range 16 Terrain Scan Density 10 Resistance: KI 35 Resistance: TH 35 Resistance: EX 35 Resistance: EM 35 Resistance: I 35 Resistance: S 35 Resistance: P 35 Weapon Shielding 33 Evasion (%) 55 Offensive Hacking 20 Item Schematics ----------------- None Robot Schematics ------------------ None Fabricated ------------ Nothing Repaired ---------- Nothing Studied --------- None Alien Tech Used ----------------- None Achievements -------------- None Challenges ------------ None Game ------ Seed PulsarPoweredNeutralizer Manual? 0 Play Time 00:08:20 Cumulative 246.5 hours Start 2026.03.01 @ 23:14:55 End 2026.03.01 @ 23:22:33 Sessions 1 Manual Loads 0 Difficulty Explorer Special Mode None Game No. 29 Rogue 0 Adventurer 2 Explorer 27 Win Type - Total 2 Types 0/2/0/0/0/0/0/0/0/0 Lore% 30 Gallery% 48 Achievement% 31 Wizard Run 0 Options --------- Layout 1 ASCII 0 Keyboard 0 Movement Mouse Keybinds 0 Fullscreen 2 Font 24/Smallcaps Map View 50x35 Zoom Use 0% Tactical HUD 1 Map Filters NONE Filters NONE Steam 1 RUN: 1c7d5809-884b-4fe4-9817-e6a7ba094529